fUST/lending_fUST_20250611
["ID","MTS","AMOUNT","RATE_DAILY","PERIOD"]
[365301859,1749587450498,-151.0,0.000242,5]
[365301860,1749587450509,-151.0,0.00024263,7]
[365301861,1749587450518,-1500.0,0.00024268,2]
[365301862,1749587450528,-1026.26156429,0.00024268,2]
[365301863,1749587450537,-3008.51294989,0.00024279,10]
[365301864,1749587450546,-1040.1,0.000243,7]
[365301865,1749587450555,-159.41069738,0.00024301,2]
[365301866,1749587450565,-159.41069739,0.00024301,2]
[365301867,1749587450574,-439.0150146,0.00024373,2]
[365301868,1749587450584,-3008.51294989,0.00024383,11]
[365301869,1749587450593,-525.24,0.00024383,4]
[365301870,1749587450603,-557.13,0.00024383,4]
[365301871,1749587450612,-460.0,0.00024383,4]
[365301872,1749587450622,-530.0,0.00024383,4]
[365301873,1749587450632,-554.14,0.00024383,4]
[365301874,1749587450641,-460.0,0.00024383,4]
[365301875,1749587450651,-1691.86,0.00024383,4]
[365301876,1749587450660,-460.0,0.00024383,4]
[365301877,1749587450669,-460.0,0.00024383,4]
[365301878,1749587450679,-460.0,0.00024383,4]
[365301879,1749587450688,-460.0,0.00024383,4]
[365301880,1749587450698,-460.0,0.00024383,4]
[365301881,1749587450708,-1801.06,0.00024383,4]
[365301882,1749587450718,-460.0,0.00024383,4]
[365301883,1749587450728,-495.01,0.00024383,4]
[365301884,1749587450738,-460.0,0.00024383,4]
[365301885,1749587450747,-460.0,0.00024383,4]
[365301886,1749587450756,-460.0,0.00024383,4]
[365301887,1749587450766,-166.06,0.00024383,4]
[365301888,1749587450775,-460.0,0.00024383,4]
[365301889,1749587450785,-1410.01,0.00024383,4]
[365301890,1749587450794,-983.61974931,0.00024383,4]
[365301891,1749587450829,500.0,0.00023885,120]
[365301892,1749587450869,500.0,0.00023885,120]
[365301893,1749587450937,500.0,0.00023885,120]
[365301894,1749587451002,500.0,0.00023885,120]
[365301895,1749587451015,-842.95025069,0.00024383,4]
[365301896,1749587451025,-244.339264,0.00024383,4]
[365301897,1749587451036,-1725.860736,0.00024383,4]
[365301898,1749587451046,-460.0,0.00024383,4]
[365301899,1749587451055,-1687.62866487,0.00024383,4]
[365301900,1749587451121,500.0,0.00023885,120]
[365301901,1749587451234,500.0,0.00023885,120]
[365301902,1749587451290,500.0,0.00023885,120]
[365301903,1749587451367,500.0,0.00023885,120]
[365301904,1749587451403,500.0,0.00023885,120]
[365301905,1749587451475,500.0,0.00023885,120]
[365301906,1749587451832,500.0,0.00023885,120]
[365301907,1749587452656,500.0,0.00023885,120]
[365301908,1749587453432,500.0,0.00023885,120]
[365301909,1749587454198,500.0,0.00023885,120]
[365301910,1749587454961,500.0,0.00023885,120]
[365301911,1749587455804,500.0,0.00023885,120]
[365301912,1749587456612,500.0,0.00023885,120]
[365301913,1749587457484,500.0,0.00023885,120]
[365301914,1749587458294,500.0,0.00023885,120]
[365301915,1749587459360,500.0,0.00023885,120]
[365301916,1749587459834,500.0,0.00023885,120]
[365301917,1749587460640,500.0,0.00023885,120]
[365301918,1749587462588,500.0,0.00023885,120]
[365301919,1749587463370,500.0,0.00023885,120]
[365301920,1749587464140,500.0,0.00023885,120]
[365301921,1749587464899,500.0,0.00023885,120]
[365301922,1749587465694,500.0,0.00023885,120]
[365301923,1749587466434,500.0,0.00023885,120]
[365301924,1749587467198,500.0,0.00023885,120]
[365301925,1749587467973,500.0,0.00023885,120]
[365301927,1749587468723,500.0,0.00023885,120]
[365301928,1749587469485,500.0,0.00023885,120]
[365301929,1749587470255,500.0,0.00023885,120]
[365301930,1749587471028,500.0,0.00023885,120]
[365301931,1749587471815,500.0,0.00023885,120]
[365301932,1749587472604,500.0,0.00023885,120]
[365301933,1749587473373,500.0,0.00023885,120]
[365301934,1749587474143,500.0,0.00023885,120]
[365301935,1749587474946,500.0,0.00023885,120]
[365301936,1749587475714,500.0,0.00023885,120]
[365301937,1749587476480,500.0,0.00023885,120]
[365301938,1749587477243,500.0,0.00023885,120]
[365301939,1749587478017,500.0,0.00023885,120]
[365301940,1749587478795,484.19,0.00023885,120]
[365301941,1749587492309,234.56,0.0002328,120]
[365301942,1749587492916,762.0,0.0002328,120]
[365301943,1749587493366,762.0,0.0002327,120]
[365301944,1749587493811,762.0,0.0002326,120]
[365301945,1749587494497,762.0,0.00023789,120]
[365301946,1749587494943,762.0,0.00023779,120]
[365301947,1749587495390,762.0,0.00023769,120]
[365301948,1749587495838,762.0,0.00024386,120]
[365301949,1749587496330,762.0,0.00024376,120]
[365301953,1749587544496,500.0,0.00023885,120]
[365301956,1749587559453,1333.0,0.00023233,120]
[365301961,1749587670713,200.0,0.00024634,120]
[365301962,1749587703105,1506.57,0.00024658,120]
[365301967,1749587790746,200.0,0.00024018,120]
[365301969,1749587850734,200.0,0.00023685,120]
[365301971,1749587910727,200.0,0.00024493,120]
[365301973,1749587970728,200.0,0.00024426,120]
[365301984,1749588069214,2000.0,0.00020068,120]
[365302006,1749588211621,200.0,0.00023889,120]
[365302010,1749588213353,152.0,0.0002328,120]
[365302011,1749588213813,152.0,0.0002327,120]
[365302012,1749588214278,152.0,0.0002326,120]
[365302013,1749588214758,152.0,0.000241,120]
[365302014,1749588215221,152.0,0.0002409,120]
[365302015,1749588215672,152.0,0.0002408,120]
[365302016,1749588216197,152.0,0.00024683,120]
[365302017,1749588216674,152.0,0.00024673,120]
[365302042,1749588343895,1333.0,0.00023233,120]
[365302045,1749588373249,179.532932,0.00020152,80]
[365302046,1749588373444,179.532932,0.00020152,119]
[365302047,1749588382466,242.951036,0.00013699,2]
[365302060,1749588445137,265.925209,0.00019767,2]
[365302061,1749588445427,177.44101978,0.00019512,2]
[365302085,1749588448064,191.79950062,0.00019512,2]
[365302086,1749588450755,200.0,0.00023907,120]
[365302089,1749588519987,783.49079817,0.0002,2]
[365302090,1749588520009,756.79920183,0.0002,2]
[365302096,1749588606770,-160.71,0.00024872,120]
[365302097,1749588606798,-152.0,0.00024882,120]
[365302098,1749588607263,-160.71,0.00024896,120]
[365302099,1749588607281,-152.0,0.00024896,120]
[365302100,1749588607385,-520.4745196,0.00024896,120]
[365302101,1749588607566,-312.71,0.00024896,120]
[365302102,1749588607610,-6101.34522313,0.00025,120]
[365302103,1749588607640,-153.0,0.00025,120]
[365302104,1749588607668,-200.0,0.00025,120]
[365302105,1749588607789,-200.0,0.00025,120]
[365302106,1749588608107,-600.0,0.00025,120]
[365302107,1749588608134,-200.0,0.00025,120]
[365302108,1749588608262,-200.0,0.00025,120]
[365302109,1749588608496,-200.0,0.00025,120]
[365302110,1749588608720,-200.0,0.00025,120]
[365302111,1749588608944,-200.0,0.00025,120]
[365302112,1749588609068,-312.71,0.00025,120]
[365302113,1749588609089,-6101.34522313,0.00025,120]
[365302114,1749588609114,-153.0,0.00025,120]
[365302115,1749588609138,-41432.94477687,0.00025,120]
[365302116,1749588609148,-186.7690978,0.00025,120]
[365302117,1749588609158,-213.1263252,0.00025,120]
[365302118,1749588609167,-351.94921058,0.00025,120]
[365302119,1749588609205,-200.0,0.0002515,120]
[365302120,1749588609214,-764.16859827,0.00025166,120]
[365302121,1749588609224,-200.0,0.00025397,120]
[365302122,1749588609233,-200.0,0.00025449,120]
[365302123,1749588609242,-200.0,0.0002546,120]
[365302124,1749588609252,-1435.83140173,0.0002548,120]
[365302125,1749588609306,-200.0,0.0002548,120]
[365302126,1749588609328,-364.16859827,0.0002548,120]
[365302127,1749588609337,-278.25082569,0.0002548,120]
[365302128,1749588609347,-200.0,0.00025495,120]
[365302129,1749588609357,-200.0,0.00025632,120]
[365302130,1749588609370,-200.0,0.00025633,120]
[365302131,1749588609379,-200.0,0.0002565,120]
[365302132,1749588609388,-200.0,0.00025708,120]
[365302133,1749588609398,-200.0,0.00025978,120]
[365302134,1749588609409,-200.0,0.00025991,120]
[365302135,1749588609481,-43719.664798,0.00026,120]
[365302136,1749588609514,-3000.0,0.00026,120]
[365302137,1749588609540,-2000.0,0.00026,120]
[365302173,1749588632559,-461.41616358,0.00020096,2]
[365302180,1749588632614,-204.58383642,0.00020096,2]
[365302182,1749588632623,-179.532932,0.00020152,2]
[365302184,1749588632632,-49.74242198,0.00020152,41]
[365302186,1749588632643,-129.79051002,0.00020152,41]
[365302188,1749588632652,-199.027992,0.00020163,2]
[365302191,1749588632661,-242.951036,0.00020187,2]
[365302194,1749588632670,-1692.46480126,0.00020692,2]
[365302196,1749588632679,-212.0,0.00020822,3]
[365302198,1749588632688,-500.0,0.00021049,2]
[365302200,1749588632697,-300.0,0.00021093,2]
[365302202,1749588632707,-300.0,0.00021093,2]
[365302204,1749588632716,-160.0,0.00021094,2]
[365302206,1749588632725,-300.0,0.00021094,2]
[365302208,1749588632734,-175.319,0.00021094,2]
[365302210,1749588632743,-173.124,0.00021094,2]
[365302212,1749588632752,-460.0,0.00021095,4]
[365302214,1749588632761,-460.0,0.00021095,4]
[365302216,1749588632769,-460.0,0.00021095,4]
[365302218,1749588632779,-460.0,0.00021095,4]
[365302220,1749588632787,-460.0,0.00021095,4]
[365302222,1749588632796,-460.0,0.00021095,4]
[365302224,1749588632805,-460.0,0.00021095,4]
[365302226,1749588632814,-460.0,0.00021095,4]
[365302228,1749588632823,-460.0,0.00021095,4]
[365302230,1749588632832,-460.0,0.00021095,4]
[365302232,1749588632841,-440.0,0.00021095,4]
[365302234,1749588632850,-182.88,0.00021095,4]
[365302236,1749588632859,-460.0,0.00021095,4]
[365302238,1749588632869,-460.0,0.00021095,4]
[365302240,1749588632878,-440.0,0.00021095,4]
[365302242,1749588632888,-460.0,0.00021095,4]
[365302244,1749588632897,-460.0,0.00021095,4]
[365302246,1749588632906,-460.0,0.00021095,4]
[365302248,1749588632916,-460.0,0.00021095,4]
[365302250,1749588632925,-460.0,0.00021095,4]
[365302252,1749588632934,-460.0,0.00021095,4]
[365302254,1749588632943,-460.0,0.00021095,4]
[365302256,1749588632955,-460.0,0.00021095,4]
[365302258,1749588632964,-440.0,0.00021095,4]
[365302260,1749588632974,-460.0,0.00021095,4]
[365302262,1749588632983,-285.89139179,0.00021095,4]
[365302264,1749588632992,-460.0,0.00021095,4]
[365302266,1749588633001,-420.0,0.00021095,4]
[365302268,1749588633010,-440.0,0.00021095,4]
[365302270,1749588633020,-430.0,0.00021095,4]
[365302272,1749588633030,-440.0,0.00021095,4]
[365302274,1749588633040,-460.0,0.00021095,4]
[365302276,1749588633049,-444.95732397,0.00021095,4]
[365302559,1749588637951,-15.04267603,0.00021095,4]
[365302560,1749588637960,-460.0,0.00021095,4]
[365302561,1749588637969,-420.0,0.00021095,4]
[365302562,1749588637979,-460.0,0.00021095,4]
[365302563,1749588637988,-460.0,0.00021095,4]
[365302564,1749588637998,-460.0,0.00021095,4]
[365302565,1749588638007,-359.06232774,0.00021095,4]
[365302567,1749588638018,-460.0,0.00021095,4]
[365302569,1749588638027,-420.0,0.00021095,4]
[365302570,1749588638036,-460.0,0.00021095,4]
[365302571,1749588638045,-460.0,0.00021095,4]
[365302572,1749588638055,-460.0,0.00021095,4]
[365302573,1749588638064,-460.0,0.00021095,4]
[365302574,1749588638073,-460.0,0.00021095,4]
[365302575,1749588638083,-460.0,0.00021095,4]
[365302576,1749588638093,-460.0,0.00021095,4]
[365302577,1749588638102,-420.0,0.00021095,4]
[365302578,1749588638111,-460.0,0.00021095,4]
[365302579,1749588638120,-594.79258161,0.00021095,4]
[365302580,1749588638130,-400.0,0.00021095,4]
[365302581,1749588638140,-440.0,0.00021095,4]
[365302582,1749588638150,-475.52381841,0.00021095,4]
[365302583,1749588638159,-460.0,0.00021095,4]
[365302584,1749588638169,-460.0,0.00021095,4]
[365302585,1749588638179,-460.0,0.00021095,4]
[365302586,1749588638188,-410.0,0.00021095,4]
[365302587,1749588638198,-460.0,0.00021095,4]
[365302588,1749588638207,-440.0,0.00021095,4]
[365302589,1749588638217,-460.0,0.00021095,4]
[365302590,1749588638226,-460.0,0.00021095,4]
[365302591,1749588638236,-460.0,0.00021095,4]
[365302592,1749588638245,-267.03578636,0.00021095,4]
[365302593,1749588638255,-460.0,0.00021095,4]
[365302594,1749588638264,-306.75854565,0.00021095,4]
[365302595,1749588638274,-420.0,0.00021095,4]
[365302596,1749588638283,-440.0,0.00021095,4]
[365302598,1749588638292,-460.0,0.00021095,4]
[365302599,1749588638301,-460.0,0.00021095,4]
[365302600,1749588638311,-420.0,0.00021095,4]
[365302601,1749588638320,-440.0,0.00021095,4]
[365302602,1749588638330,-440.0,0.00021095,4]
[365302604,1749588638339,-440.0,0.00021095,4]
[365302606,1749588638349,-460.0,0.00021095,4]
[365302608,1749588638359,-1374.56,0.00021095,4]
[365302610,1749588638370,-420.0,0.00021095,4]
[365302612,1749588638382,-440.0,0.00021095,4]
[365302613,1749588638391,-440.0,0.00021095,4]
[365302614,1749588638400,-500.0,0.00021095,4]
[365302615,1749588638410,-460.0,0.00021095,4]
[365302616,1749588638420,-460.0,0.00021095,4]
[365302617,1749588638429,-460.0,0.00021095,4]
[365302618,1749588638438,-460.0,0.00021095,4]
[365302620,1749588638449,-460.0,0.00021095,4]
[365302622,1749588638459,-460.0,0.00021095,4]
[365302624,1749588638468,-460.0,0.00021095,4]
[365302626,1749588638477,-420.0,0.00021095,4]
[365302628,1749588638486,-440.0,0.00021095,4]
[365302630,1749588638496,-460.0,0.00021095,4]
[365302632,1749588638505,-460.0,0.00021095,4]
[365302634,1749588638514,-420.0,0.00021095,4]
[365302636,1749588638524,-460.0,0.00021095,4]
[365302638,1749588638533,-420.0,0.00021095,4]
[365302640,1749588638542,-460.0,0.00021095,4]
[365302642,1749588638552,-465.9860981,0.00021095,4]
[365302644,1749588638561,-440.0,0.00021095,4]
[365302646,1749588638691,-400.0,0.00021095,4]
[365302647,1749588638701,-460.0,0.00021095,4]
[365302648,1749588638711,-460.0,0.00021095,4]
[365302649,1749588638720,-460.0,0.00021095,4]
[365302650,1749588638730,-500.0,0.00021095,4]
[365302651,1749588638739,-500.0,0.00021095,4]
[365302652,1749588638748,-500.0,0.00021095,4]
[365302653,1749588638759,-500.0,0.00021095,4]
[365302654,1749588638769,-460.0,0.00021095,4]
[365302655,1749588638780,-411.31524347,0.00021095,4]
[365302656,1749588638790,-460.0,0.00021095,4]
[365302657,1749588638800,-473.56363254,0.00021095,4]
[365302658,1749588638810,-440.0,0.00021095,4]
[365302659,1749588638819,-410.0,0.00021095,4]
[365302660,1749588638834,-1447.28,0.00021095,4]
[365302661,1749588638844,-420.0,0.00021095,4]
[365302662,1749588638854,-460.0,0.00021095,4]
[365302663,1749588638864,-440.0,0.00021095,4]
[365302664,1749588638875,-233.2,0.00021095,4]
[365302665,1749588638885,-460.0,0.00021095,4]
[365302666,1749588638895,-460.0,0.00021095,4]
[365302667,1749588638905,-460.0,0.00021095,4]
[365302668,1749588638915,-460.0,0.00021095,4]
[365302669,1749588638924,-460.0,0.00021095,4]
[365302670,1749588638934,-420.0,0.00021095,4]
[365302671,1749588638943,-400.0,0.00021095,4]
[365302672,1749588638952,-460.0,0.00021095,4]
[365302673,1749588638962,-460.0,0.00021095,4]
[365302674,1749588638971,-460.0,0.00021095,4]
[365302675,1749588638981,-460.0,0.00021095,4]
[365302676,1749588638991,-460.0,0.00021095,4]
[365302677,1749588639001,-413.28481233,0.00021095,4]
[365302678,1749588639011,-460.0,0.00021095,4]
[365302679,1749588639022,-460.0,0.00021095,4]
[365302680,1749588639031,-420.0,0.00021095,4]
[365302681,1749588639040,-191.8996673,0.00021095,4]
[365302682,1749588639050,-460.0,0.00021095,4]
[365302683,1749588639060,-460.0,0.00021095,4]
[365302684,1749588639070,-430.0,0.00021095,4]
[365302685,1749588639079,-242.3195849,0.00021095,4]
[365302686,1749588639089,-460.0,0.00021095,2]
[365302687,1749588639098,-460.0,0.00021095,4]
[365302688,1749588639108,-460.0,0.00021095,4]
[365302689,1749588639117,-420.0,0.00021095,4]
[365302690,1749588639128,-460.0,0.00021095,4]
[365302691,1749588639138,-460.0,0.00021095,4]
[365302692,1749588639147,-460.0,0.00021095,4]
[365302693,1749588639156,-430.0,0.00021095,4]
[365302694,1749588639166,-1347.28,0.00021095,4]
[365302695,1749588639176,-460.0,0.00021095,4]
[365302696,1749588639185,-460.0,0.00021095,4]
[365302697,1749588639194,-1315.98,0.00021095,4]
[365302698,1749588639203,-400.82147598,0.00021095,4]
[365302699,1749588639212,-495.21136589,0.00021095,4]
[365302700,1749588639221,-410.0,0.00021095,4]
[365302701,1749588639231,-460.0,0.00021095,4]
[365302702,1749588639240,-1415.55,0.00021095,4]
[365302703,1749588639249,-506.1688868,0.00021095,4]
[365302704,1749588639259,-470.48619459,0.00021095,4]
[365302705,1749588639268,-460.0,0.00021095,4]
[365302706,1749588639277,-460.0,0.00021095,4]
[365302707,1749588639287,-460.0,0.00021095,4]
[365302708,1749588639296,-460.0,0.00021095,4]
[365302709,1749588639305,-460.0,0.00021095,4]
[365302710,1749588639314,-1157.58,0.00021095,4]
[365302711,1749588639323,-460.0,0.00021095,4]
[365302712,1749588639332,-440.0,0.00021095,4]
[365302713,1749588639342,-440.0,0.00021095,4]
[365302714,1749588639351,-460.0,0.00021095,4]
[365302715,1749588639360,-477.52,0.00021095,4]
[365302716,1749588639371,-460.0,0.00021095,4]
[365302717,1749588639382,-972.44,0.00021095,4]
[365302718,1749588639391,-460.0,0.00021095,4]
[365302719,1749588639400,-460.0,0.00021095,4]
[365302720,1749588639409,-460.0,0.00021095,4]
[365302721,1749588639419,-460.0,0.00021095,4]
[365302722,1749588639428,-1004.8,0.00021095,4]
[365302723,1749588639437,-460.0,0.00021095,4]
[365302724,1749588639448,-1677.66,0.00021095,4]
[365302725,1749588639457,-460.0,0.00021095,4]
[365302726,1749588639467,-460.0,0.00021095,4]
[365302727,1749588639477,-460.0,0.00021095,4]
[365302728,1749588639486,-390.0,0.00021095,4]
[365302729,1749588639496,-460.0,0.00021095,4]
[365302730,1749588639505,-460.0,0.00021095,4]
[365302731,1749588639514,-375.74198869,0.00021095,4]
[365302732,1749588639524,-460.0,0.00021095,4]
[365302733,1749588639533,-181.30212675,0.00021095,4]
[365302734,1749588639542,-460.0,0.00021095,4]
[365302735,1749588639551,-370.0,0.00021095,4]
[365302736,1749588639561,-460.0,0.00021095,4]
[365302737,1749588639570,-460.0,0.00021095,4]
[365302738,1749588639580,-472.76,0.00021095,4]
[365302739,1749588639589,-460.0,0.00021095,4]
[365302740,1749588639599,-460.0,0.00021095,4]
[365302741,1749588639608,-460.0,0.00021095,4]
[365302742,1749588639618,-460.0,0.00021095,4]
[365302743,1749588639629,-460.0,0.00021095,4]
[365302744,1749588639639,-460.0,0.00021095,4]
[365302745,1749588639648,-460.0,0.00021095,4]
[365302746,1749588639658,-460.0,0.00021095,4]
[365302747,1749588639667,-460.0,0.00021095,4]
[365302748,1749588639676,-440.0,0.00021095,4]
[365302749,1749588639686,-460.0,0.00021095,4]
[365302750,1749588639696,-440.0,0.00021095,4]
[365302751,1749588639705,-460.0,0.00021095,4]
[365302752,1749588639714,-460.0,0.00021095,4]
[365302753,1749588639724,-430.0,0.00021095,4]
[365302754,1749588639734,-460.0,0.00021095,4]
[365302755,1749588639743,-460.0,0.00021095,4]
[365302756,1749588639752,-440.0,0.00021095,4]
[365302757,1749588639761,-460.0,0.00021095,4]
[365302758,1749588639770,-460.0,0.00021095,4]
[365302759,1749588639779,-460.0,0.00021095,4]
[365302760,1749588639789,-460.0,0.00021095,4]
[365302761,1749588639799,-500.0,0.00021095,4]
[365302762,1749588639809,-1033.1,0.00021263,2]
[365302763,1749588639819,-172.10014688,0.00021273,2]
[365302764,1749588639829,-548.48,0.00021359,3]
[365302765,1749588639838,-274.24,0.00021359,3]
[365302766,1749588639848,-822.74,0.00021359,3]
[365302767,1749588639858,-500.0,0.00021368,4]
[365302768,1749588639868,-500.0,0.00021368,4]
[365302769,1749588639879,-500.0,0.00021368,4]
[365302770,1749588639889,-460.0,0.00021369,4]
[365302771,1749588639899,-460.0,0.00021369,4]
[365302772,1749588639909,-460.0,0.00021369,4]
[365302773,1749588639919,-460.0,0.00021369,4]
[365302774,1749588639936,-460.0,0.00021369,4]
[365302775,1749588639949,-460.0,0.00021369,4]
[365302776,1749588639959,-460.0,0.00021369,4]
[365302777,1749588639970,-294.41680277,0.00021369,4]
[365302778,1749588639981,-270.48538673,0.00021369,4]
[365302779,1749588639991,-460.0,0.00021369,4]
[365302780,1749588640002,-460.0,0.00021369,4]
[365302781,1749588640012,-460.0,0.00021369,4]
[365302783,1749588640022,-154.13313598,0.00021369,4]
[365302784,1749588640033,-420.0,0.00021369,4]
[365302785,1749588640043,-460.0,0.00021369,4]
[365302786,1749588640053,-326.08095417,0.00021369,4]
[365302787,1749588640063,-420.0,0.00021369,4]
[365302788,1749588640072,-460.0,0.00021369,4]
[365302789,1749588640082,-410.0,0.00021369,4]
[365302790,1749588640092,-460.0,0.00021369,4]
[365302791,1749588640102,-420.0,0.00021369,4]
[365302792,1749588640112,-460.0,0.00021369,4]
[365302793,1749588640122,-460.0,0.00021369,4]
[365302795,1749588640134,-330.0,0.00021369,4]
[365302797,1749588640144,-460.0,0.00021369,4]
[365302798,1749588640154,-460.0,0.00021369,4]
[365302799,1749588640164,-460.0,0.00021369,4]
[365302800,1749588640174,-460.0,0.00021369,4]
[365302801,1749588640183,-420.0,0.00021369,4]
[365302802,1749588640193,-400.0,0.00021369,4]
[365302803,1749588640204,-460.0,0.00021369,4]
[365302804,1749588640214,-460.0,0.00021369,4]
[365302805,1749588640224,-539.340788,0.00021369,4]
[365302806,1749588640234,-460.0,0.00021369,4]
[365302808,1749588640244,-460.0,0.00021369,4]
[365302809,1749588640254,-460.0,0.00021369,4]
[365302810,1749588640263,-460.0,0.00021369,4]
[365302811,1749588640273,-460.0,0.00021369,4]
[365302812,1749588640283,-400.0,0.00021369,4]
[365302813,1749588640293,-460.0,0.00021369,4]
[365302814,1749588640304,-460.0,0.00021369,4]
[365302815,1749588640313,-460.0,0.00021369,4]
[365302816,1749588640323,-460.0,0.00021369,4]
[365302817,1749588640333,-420.0,0.00021369,4]
[365302818,1749588640343,-460.0,0.00021369,4]
[365302819,1749588640353,-460.0,0.00021369,4]
[365302821,1749588640363,-460.0,0.00021369,4]
[365302822,1749588640375,-400.0,0.00021369,4]
[365302823,1749588640384,-1374.56,0.00021369,4]
[365302825,1749588640394,-460.0,0.00021369,4]
[365302826,1749588640405,-460.0,0.00021369,4]
[365302827,1749588640417,-460.0,0.00021369,4]
[365302828,1749588640427,-460.0,0.00021369,4]
[365302829,1749588640436,-460.0,0.00021369,4]
[365302830,1749588640446,-460.0,0.00021369,4]
[365302831,1749588640458,-400.0,0.00021369,4]
[365302832,1749588640467,-460.0,0.00021369,4]
[365302833,1749588640477,-460.0,0.00021369,4]
[365302834,1749588640487,-460.0,0.00021369,4]
[365302835,1749588640496,-460.0,0.00021369,4]
[365302836,1749588640506,-380.0,0.00021369,4]
[365302837,1749588640515,-162.65955834,0.00021369,4]
[365302838,1749588640525,-460.0,0.00021369,4]
[365302839,1749588640535,-460.0,0.00021369,4]
[365302840,1749588640544,-380.0,0.00021369,4]
[365302841,1749588640554,-1447.28,0.00021369,4]
[365302842,1749588640563,-460.0,0.00021369,4]
[365302843,1749588640573,-460.0,0.00021369,4]
[365302844,1749588640582,-386.28705695,0.00021369,4]
[365302845,1749588640592,-460.0,0.00021369,4]
[365302846,1749588640601,-460.0,0.00021369,4]
[365302847,1749588640611,-460.0,0.00021369,4]
[365302848,1749588640620,-460.0,0.00021369,4]
[365302849,1749588640632,-460.0,0.00021369,4]
[365302850,1749588640643,-460.0,0.00021369,4]
[365302851,1749588640653,-390.0,0.00021369,4]
[365302852,1749588640663,-460.0,0.00021369,4]
[365302853,1749588640673,-460.0,0.00021369,4]
[365302854,1749588640683,-460.0,0.00021369,4]
[365302855,1749588640693,-460.0,0.00021369,4]
[365302856,1749588640703,-460.0,0.00021369,4]
[365302857,1749588640713,-460.0,0.00021369,2]
[365302858,1749588640723,-460.0,0.00021369,4]
[365302859,1749588640732,-460.0,0.00021369,4]
[365302860,1749588640742,-460.0,0.00021369,4]
[365302861,1749588640752,-460.0,0.00021369,4]
[365302862,1749588640762,-460.0,0.00021369,4]
[365302863,1749588640772,-1347.28,0.00021369,4]
[365302864,1749588640782,-230.0,0.00021369,4]
[365302865,1749588640791,-460.0,0.00021369,4]
[365302866,1749588640802,-1315.98,0.00021369,4]
[365302867,1749588640811,-421.3213603,0.00021369,4]
[365302868,1749588640822,-1415.55,0.00021369,4]
[365302869,1749588640831,-460.0,0.00021369,4]
[365302870,1749588640841,-460.0,0.00021369,4]
[365302872,1749588640851,-460.0,0.00021369,4]
[365302874,1749588640862,-460.0,0.00021369,4]
[365302876,1749588640872,-460.0,0.00021369,4]
[365302878,1749588640884,-1157.58,0.00021369,4]
[365302880,1749588640894,-460.0,0.00021369,4]
[365302882,1749588640904,-460.0,0.00021369,4]
[365302884,1749588640915,-477.52,0.00021369,4]